bitfinex/quotes_BTCUSD_20250831
["timestamp","ask_amount","ask_price","bid_price","bid_amount"]
[1756664668861,0.18318341,109210.0,109200.0,0.11695883]
[1756664669106,0.18318341,109210.0,109200.0,0.27063883]
[1756664669577,0.56415302,109210.0,109200.0,0.11391883]
[1756664669782,0.66202716,109210.0,109200.0,0.15047442]
[1756664669995,0.57373084,109210.0,109200.0,0.15415442]
[1756664670511,0.57373084,109210.0,109200.0,0.00047442]
[1756664670671,0.58310863,109210.0,109200.0,0.15047442]
[1756664670873,0.62345887,109210.0,109200.0,0.15047442]
[1756664671952,0.23391144,109210.0,109200.0,0.15047442]
[1756664672160,0.62345274,109210.0,109200.0,0.15047442]
[1756664672372,0.62345274,109210.0,109200.0,0.00047442]
[1756664672765,0.62345274,109210.0,109190.0,0.17461882]
[1756664672766,0.18315018,109200.0,109190.0,0.17461882]
[1756664672979,0.18315018,109200.0,109190.0,0.26759883]
[1756664673196,0.18055309,109200.0,109190.0,0.26755883]
[1756664674019,0.18055309,109200.0,109190.0,0.26855883]
[1756664674639,0.18055309,109200.0,109190.0,0.27159883]
[1756664674939,0.18055309,109200.0,109190.0,0.27259883]
[1756664675510,0.18055309,109200.0,109190.0,0.27460883]
[1756664676647,0.18055309,109200.0,109190.0,0.16069]
[1756664676648,0.94249231,109200.0,109190.0,0.16069]
[1756664676957,0.97002531,109200.0,109190.0,0.16069]
[1756664677690,0.97002531,109200.0,109190.0,0.15564]
[1756664677915,1.05832163,109200.0,109190.0,0.002]
[1756664678559,1.21188163,109200.0,109190.0,0.001]
[1756664678701,0.18316695,109190.0,109180.0,0.2274]
[1756664678899,0.56413656,109190.0,109180.0,0.22941]
[1756664679129,0.56418656,109190.0,109180.0,0.22941]
[1756664679350,0.59172156,109190.0,109180.0,0.22941]
[1756664679801,0.59167156,109190.0,109180.0,0.22941]
[1756664679988,0.59167156,109190.0,109180.0,0.23041]
[1756664681000,0.59167156,109190.0,109180.0,0.23141]
[1756664681440,1.31269117,109190.0,109180.0,0.0024]
[1756664681649,1.31269117,109190.0,109180.0,0.1524]
[1756664681650,1.32124614,109190.0,109180.0,0.1524]
[1756664682054,1.32124614,109190.0,109180.0,0.0024]
[1756664682265,1.32124614,109190.0,109180.0,0.1514]
[1756664682461,1.40954246,109190.0,109180.0,0.0004]
[1756664682604,1.41154246,109190.0,109180.0,0.0004]
[1756664682811,1.41254026,109190.0,109180.0,0.0004]
[1756664685227,1.5831946,109190.0,109180.0,0.0004]
[1756664685437,1.67617461,109190.0,109180.0,0.0004]
[1756664685863,1.52261461,109190.0,109180.0,0.0004]
[1756664686087,1.67613461,109190.0,109180.0,0.0004]
[1756664687380,1.58783829,109190.0,109180.0,0.0004]
[1756664688587,1.58787829,109190.0,109180.0,0.0004]
[1756664688790,1.58787829,109190.0,109180.0,0.15545]
[1756664688791,0.96031867,109190.0,109180.0,0.15545]
[1756664689014,1.09674433,109190.0,109180.0,0.00545]
[1756664689706,0.94322433,109190.0,109180.0,0.00545]
[1756664689910,0.94321672,109190.0,109180.0,0.00545]
[1756664690306,0.9603107,109190.0,109180.0,0.00545]
[1756664692013,0.96031491,109190.0,109180.0,0.00545]
[1756664693410,0.94322093,109190.0,109180.0,0.00545]
[1756664693633,0.96034131,109190.0,109180.0,0.00545]
[1756664695027,1.11382131,109190.0,109180.0,0.00545]
[1756664695961,1.11383411,109190.0,109180.0,0.00545]
[1756664696782,1.20213043,109190.0,109180.0,0.00545]
[1756664696940,1.20218043,109190.0,109180.0,0.0004]
[1756664697144,1.58315004,109190.0,109180.0,0.0004]
[1756664697940,1.58315004,109190.0,109180.0,0.1504]
[1756664698153,1.58315004,109190.0,109180.0,0.0004]
[1756664698754,1.58957718,109190.0,109180.0,0.0004]
[1756664698982,1.60932202,109190.0,109180.0,0.0004]
[1756664700500,1.60289488,109190.0,109180.0,0.0004]
[1756664700759,1.60935966,109190.0,109180.0,0.0004]
[1756664701316,0.84742044,109190.0,109180.0,0.0004]
[1756664701540,1.60935966,109190.0,109180.0,0.0004]
[1756664703226,1.60936735,109190.0,109180.0,0.0004]
[1756664703856,1.60936952,109190.0,109180.0,0.0004]
[1756664705206,1.45588952,109190.0,109180.0,0.0004]
[1756664705412,1.60948952,109190.0,109180.0,0.0004]
[1756664706231,1.60948952,109190.0,109180.0,0.00351]
[1756664706613,1.60949609,109190.0,109180.0,0.00351]
[1756664708718,1.22844648,109190.0,109180.0,0.00351]
[1756664708916,1.22844648,109190.0,109180.0,0.15351]
[1756664709942,1.60941609,109190.0,109180.0,0.00351]
[1756664710302,0.18318373,109180.0,109170.0,0.0004]
[1756664710513,1.13081521,109180.0,109170.0,0.0004]
[1756664710715,1.13081521,109180.0,109170.0,0.00237]
[1756664710898,1.15835521,109180.0,109170.0,0.00237]
[1756664712154,1.00483521,109180.0,109170.0,0.15237]
[1756664712371,1.15843521,109180.0,109170.0,0.15548]
[1756664712565,0.7774256,109180.0,109170.0,0.15548]
[1756664712949,0.5898946,109180.0,109170.0,0.33947901]
[1756664713196,0.40671087,109180.0,109170.0,0.33947901]
[1756664713406,0.5898946,109180.0,109170.0,0.33947901]
[1756664713828,0.5898946,109180.0,109170.0,0.30259934]
[1756664714044,0.57274308,109180.0,109170.0,0.30259934]
[1756664714258,0.40674316,109180.0,109170.0,0.30259934]
[1756664714502,0.38956079,109180.0,109170.0,0.30259934]
[1756664714737,0.57274415,109180.0,109170.0,0.30259934]
[1756664716558,0.57274415,109180.0,109170.0,0.91893077]
[1756664716559,0.00859081,109180.0,109170.0,0.91893077]
[1756664716784,0.38170317,109200.0,109190.0,0.20410577]
[1756664717073,0.3895585,109200.0,109190.0,0.20918577]
[1756664717294,0.3895585,109200.0,109190.0,0.45584578]
[1756664717523,0.3895585,109200.0,109190.0,0.48337578]
[1756664717737,0.3895585,109200.0,109190.0,0.51942067]
[1756664718172,0.3925585,109200.0,109190.0,0.51942067]
[1756664718373,0.3945585,109200.0,109190.0,0.51942067]
[1756664720303,0.38596961,109200.0,109190.0,0.51942067]
[1756664720510,0.005,109200.0,109190.0,0.51942067]
[1756664723366,0.005,109200.0,109190.0,0.66942067]
[1756664723816,0.005,109200.0,109190.0,0.51942067]
[1756664724212,0.005,109200.0,109190.0,0.66942067]
[1756664724367,0.005,109200.0,109190.0,0.51942067]
[1756664725449,0.005,109200.0,109190.0,0.36574067]
[1756664725664,0.005,109200.0,109190.0,0.51942067]
[1756664730370,0.005,109200.0,109190.0,0.66942067]
[1756664730575,0.005,109200.0,109190.0,0.73986067]
[1756664733525,0.005,109200.0,109190.0,0.97083028]
[1756664733936,0.00047346,109210.0,109200.0,0.18315018]
[1756664734146,0.00047346,109210.0,109200.0,0.32838162]
[1756664734294,0.00047346,109210.0,109200.0,0.33346162]
[1756664734480,0.00047346,109210.0,109200.0,0.36098962]
[1756664735895,0.17914537,109220.0,109210.0,0.20407223]
[1756664736107,0.17914537,109220.0,109210.0,0.45483448]
[1756664736306,0.17914537,109220.0,109210.0,0.49087937]
[1756664736541,0.17914537,109220.0,109210.0,0.51840637]
[1756664736712,0.17914537,109220.0,109210.0,0.51640637]
[1756664737111,0.18112537,109220.0,109210.0,0.51640637]
[1756664737352,0.18312537,109220.0,109210.0,0.51640637]
[1756664737780,0.18412537,109220.0,109210.0,0.51640637]
[1756664737936,0.18412537,109220.0,109210.0,0.36284637]
[1756664738146,0.18412537,109220.0,109210.0,0.51636637]
[1756664739884,0.18214537,109220.0,109210.0,0.51636637]
[1756664740983,0.003,109220.0,109210.0,0.51636637]
[1756664741943,0.38396961,109220.0,109210.0,0.51636637]
[1756664742963,0.38396961,109220.0,109210.0,0.36284637]
[1756664743182,0.38396961,109220.0,109210.0,0.51624637]
[1756664743335,0.39253694,109220.0,109210.0,0.51624637]
[1756664745691,0.39253694,109220.0,109210.0,0.51620637]
[1756664746501,0.39254974,109220.0,109210.0,0.51620637]
[1756664747188,0.01158013,109220.0,109210.0,0.51620637]
[1756664750795,0.01231369,109220.0,109210.0,0.51612637]
[1756664751248,0.01158013,109220.0,109210.0,0.51612637]
[1756664751879,0.01158013,109220.0,109210.0,0.36284637]
[1756664752078,0.01158013,109220.0,109210.0,0.51612637]
[1756664752224,0.39254974,109220.0,109210.0,0.51612637]
[1756664752411,0.39254974,109220.0,109210.0,0.36284637]
[1756664752644,0.39254974,109220.0,109210.0,0.51616637]
[1756664754904,0.57765638,109220.0,109210.0,0.47804148]
[1756664755116,0.73396638,109220.0,109210.0,0.14158807]
[1756664755388,0.73396638,109220.0,109210.0,0.26734107]
[1756664756560,0.73396638,109220.0,109210.0,0.15014224]
[1756664756725,0.75114344,109220.0,109210.0,0.15014224]
[1756664757116,0.74256331,109220.0,109210.0,0.15014224]
[1756664757460,0.75115527,109220.0,109210.0,0.15014224]
[1756664760736,0.73397592,109220.0,109210.0,0.15014224]
[1756664760967,0.75115364,109220.0,109210.0,0.15014224]
[1756664763247,0.74256397,109220.0,109210.0,0.15014224]
[1756664763498,0.75115207,109220.0,109210.0,0.15014224]
[1756664763830,0.82482437,109220.0,109210.0,0.15014224]
[1756664764812,0.82482437,109220.0,109210.0,0.00014224]
[1756664767045,0.82481611,109220.0,109210.0,0.00014224]
[1756664767251,0.8076444,109220.0,109210.0,0.00014224]
[1756664768096,0.7340921,109220.0,109210.0,0.00014224]
[1756664769600,0.75126024,109220.0,109210.0,0.00014224]
[1756664770394,0.75126007,109220.0,109210.0,0.00014224]
[1756664770601,0.75126007,109220.0,109210.0,0.15014224]
[1756664771430,0.7340921,109220.0,109210.0,0.15014224]
[1756664772963,0.82238842,109220.0,109210.0,0.15014224]
[1756664773187,0.82242842,109220.0,109210.0,0.00014224]
[1756664775813,0.66898842,109220.0,109210.0,0.00014224]
[1756664776104,0.82238842,109220.0,109210.0,0.00014224]
[1756664777155,0.84992042,109220.0,109210.0,0.00014224]
[1756664777980,0.84991717,109220.0,109210.0,0.00014224]
[1756664780254,0.65529661,109220.0,109210.0,0.15014224]
[1756664780459,0.85558117,109220.0,109210.0,0.15014224]
[1756664782204,1.9614451,109220.0,109210.0,0.15014224]
[1756664782408,2.05442511,109220.0,109210.0,0.00014224]
[1756664782631,2.05434511,109220.0,109210.0,0.00014224]
[1756664782836,2.06078506,109220.0,109210.0,0.00014224]
[1756664783219,2.12474511,109220.0,109210.0,0.00014224]
[1756664783567,2.13118495,109220.0,109210.0,0.00014224]
[1756664784156,1.75020881,109220.0,109210.0,0.00014224]
[1756664784522,1.75020892,109220.0,109210.0,0.00014224]
[1756664785860,1.74376897,109220.0,109210.0,0.00014224]
[1756664786271,1.75020936,109220.0,109210.0,0.00014224]
[1756664786963,1.59688936,109220.0,109210.0,0.00014224]
[1756664787153,1.36914262,109220.0,109210.0,0.00014224]
[1756664787335,1.36270223,109220.0,109210.0,0.00014224]
[1756664788663,1.34553431,109220.0,109210.0,0.00014224]
[1756664788793,1.36270999,109220.0,109210.0,0.00014224]
[1756664791740,1.74389673,109220.0,109210.0,0.00014224]
[1756664792358,1.72672454,109220.0,109210.0,0.00014224]
[1756664792503,1.7438952,109220.0,109210.0,0.00014224]
[1756664793160,1.7438952,109220.0,109210.0,0.00335224]
[1756664793514,1.36270846,109220.0,109210.0,0.00335224]
[1756664795076,1.7438952,109220.0,109210.0,0.00335224]
[1756664795705,1.12097214,109220.0,109210.0,0.00549224]
[1756664795906,1.27433214,109220.0,109210.0,0.00549224]
[1756664798935,1.12097214,109220.0,109210.0,0.00549224]
[1756664799157,1.18131213,109220.0,109210.0,0.00549224]
[1756664799592,1.18131671,109220.0,109210.0,0.00549224]
[1756664799790,1.26961303,109220.0,109210.0,0.00549224]
[1756664800505,1.26961507,109220.0,109210.0,0.00549224]
[1756664801458,1.26961582,109220.0,109210.0,0.00549224]
[1756664806116,1.6506006,109220.0,109210.0,0.00549224]
[1756664806952,1.65060711,109220.0,109210.0,0.00549224]
[1756664807368,2.03169287,109220.0,109210.0,0.00014224]
[1756664807753,2.03169287,109220.0,109210.0,0.00335224]
[1756664808630,2.03169515,109220.0,109210.0,0.00335224]
[1756664809501,2.03169515,109220.0,109210.0,0.00549224]
[1756664809688,1.87837515,109220.0,109210.0,0.00549224]
[1756664809840,2.03161515,109220.0,109210.0,0.00549224]
[1756664810485,2.03161971,109220.0,109210.0,0.00549224]
[1756664811084,2.03161992,109220.0,109210.0,0.00549224]
[1756664812837,1.87837992,109220.0,109210.0,0.00549224]
[1756664812972,2.03161992,109220.0,109210.0,0.00549224]
[1756664813175,1.87837992,109220.0,109210.0,0.00549224]
[1756664813495,2.03161992,109220.0,109210.0,0.00549224]
[1756664813700,2.03161992,109220.0,109210.0,0.00014224]
[1756664814571,2.03161992,109220.0,109210.0,0.00307224]
[1756664815144,1.9433236,109220.0,109210.0,0.00307224]
[1756664816247,1.56223784,109220.0,109210.0,0.00523224]
[1756664816965,1.56223784,109220.0,109210.0,0.15523224]
[1756664817792,1.56224,109220.0,109210.0,0.15523224]
[1756664820988,1.56224589,109220.0,109210.0,0.15523224]
[1756664821637,1.65054272,109220.0,109210.0,0.15523224]
[1756664822415,2.03162848,109220.0,109210.0,0.15523224]
[1756664823183,1.65054272,109220.0,109210.0,0.15523224]
[1756664826823,1.58014272,109220.0,109210.0,0.15523224]
[1756664827442,1.58014824,109220.0,109210.0,0.15523224]
[1756664829314,1.961234,109220.0,109210.0,0.15014224]
[1756664829936,1.98749317,109220.0,109210.0,0.15014224]
[1756664830120,1.98749317,109220.0,109210.0,0.15307224]
[1756664831096,1.98749654,109220.0,109210.0,0.15307224]
[1756664831590,1.9874965,109220.0,109210.0,0.15307224]
[1756664833172,1.49830404,109220.0,109210.0,0.00523224]
[1756664833367,1.4918553,109220.0,109210.0,0.00523224]
[1756664834866,0.9710833,109220.0,109210.0,0.20930447]
[1756664835068,1.1243233,109220.0,109210.0,0.20930447]
[1756664836494,1.10712654,109220.0,109210.0,0.20930447]
[1756664841917,1.1071157,109220.0,109210.0,0.20930447]
[1756664842119,1.09852816,109220.0,109210.0,0.20930447]
[1756664844243,0.94528816,109220.0,109210.0,0.35930447]
[1756664844430,1.09848816,109220.0,109210.0,0.20930447]
[1756664844859,0.02806267,109230.0,109220.0,0.18311664]
[1756664845071,0.38162043,109230.0,109220.0,0.18514664]
[1756664845291,0.53482043,109230.0,109220.0,0.20928546]
[1756664845729,0.53482043,109230.0,109220.0,0.35928546]
[1756664845944,0.00053467,109230.0,109220.0,0.45546547]
[1756664846152,0.00053467,109230.0,109220.0,0.51396191]
[1756664846489,0.00153467,109230.0,109220.0,0.51396191]
[1756664847280,0.00253467,109230.0,109220.0,0.51396191]
[1756664848944,0.00253467,109230.0,109220.0,0.36076191]
[1756664849144,0.00253467,109230.0,109220.0,0.51396191]
[1756664849385,0.38362043,109230.0,109220.0,0.51396191]
[1756664850724,0.00253467,109230.0,109220.0,0.51396191]
[1756664851413,0.38362043,109230.0,109220.0,0.51396191]
[1756664851599,0.38362043,109230.0,109220.0,0.48298747]
[1756664851845,0.38362043,109230.0,109220.0,0.48095747]
[1756664852040,0.38362043,109230.0,109220.0,0.48298747]
[1756664853942,0.00253467,109230.0,109220.0,0.48298747]
[1756664854142,0.56729591,109230.0,109220.0,0.29784083]
[1756664854455,0.94749015,109230.0,109220.0,0.29784083]
[1756664856914,1.1443868,109230.0,109220.0,0.05166082]
[1756664857130,1.1443868,109230.0,109220.0,0.027522]
[1756664857764,0.18311664,109220.0,109210.0,0.33963565]
[1756664857993,0.56404444,109220.0,109210.0,0.33963565]
[1756664858225,0.56404444,109220.0,109210.0,0.36716465]
[1756664858445,0.3809278,109220.0,109210.0,0.36919465]
[1756664858907,0.3809278,109220.0,109210.0,0.51919465]
[1756664859149,0.3809278,109220.0,109210.0,0.36919465]
[1756664862514,0.3809278,109220.0,109210.0,0.54630733]
[1756664863879,0.3809278,109220.0,109210.0,0.48311348]
[1756664865333,0.15421598,109220.0,109210.0,0.48311348]
[1756664866109,0.15494954,109220.0,109210.0,0.48311348]
[1756664868114,0.15421598,109220.0,109210.0,0.63311348]
[1756664868641,0.15421598,109220.0,109210.0,0.48311348]
[1756664869071,0.15421598,109220.0,109210.0,0.55769921]
[1756664872775,0.18363455,109230.0,109220.0,0.18311664]
[1756664873000,0.56456235,109230.0,109220.0,0.18623664]
[1756664873406,0.56456235,109230.0,109220.0,0.18834664]
[1756664874580,0.56556235,109230.0,109220.0,0.18834664]
[1756664874788,0.38246247,109230.0,109220.0,0.36888848]
[1756664874989,0.00153467,109230.0,109220.0,0.36888848]
[1756664875223,0.00253467,109230.0,109220.0,0.36888848]
[1756664875480,0.38346247,109230.0,109220.0,0.36888848]
[1756664878454,0.00253467,109230.0,109220.0,0.36888848]
[1756664879133,0.00253467,109230.0,109220.0,0.51888848]
[1756664880024,0.38340842,109230.0,109220.0,0.51888848]
[1756664881606,0.38340842,109230.0,109220.0,0.54641348]
[1756664882657,0.38340842,109230.0,109220.0,0.39641348]
[1756664887478,0.5665083,109230.0,109220.0,0.29480383]
[1756664887706,0.5665083,109230.0,109220.0,0.14144383]
[1756664887931,0.5665083,109230.0,109220.0,0.29484383]
[1756664888155,0.57509933,109230.0,109220.0,0.29484383]
[1756664888376,0.57509933,109230.0,109220.0,0.29796383]
[1756664890518,0.5665083,109230.0,109220.0,0.29796383]
[1756664890754,0.57509954,109230.0,109220.0,0.29796383]
[1756664891460,0.5665083,109230.0,109220.0,0.29796383]
[1756664891672,0.5665083,109230.0,109220.0,0.29896383]
[1756664893523,0.5665083,109230.0,109220.0,0.14556383]
[1756664893760,0.5665083,109230.0,109220.0,0.29884383]
[1756664894567,0.57509978,109230.0,109220.0,0.29884383]
[1756664894777,0.5665083,109230.0,109220.0,0.29884383]
[1756664895535,0.5665083,109230.0,109220.0,0.29572383]
[1756664896159,0.57510009,109230.0,109220.0,0.29884383]
[1756664896382,0.5665083,109230.0,109220.0,0.29884383]
[1756664896755,0.57510009,109230.0,109220.0,0.29884383]
[1756664897057,0.57510009,109230.0,109220.0,0.27131883]
[1756664901152,0.5751007,109230.0,109220.0,0.27339883]
[1756664901785,0.18563455,109230.0,109220.0,0.45651547]
[1756664901992,0.5665083,109230.0,109220.0,0.45651547]
[1756664906541,0.5665083,109230.0,109220.0,0.27339883]
[1756664907122,0.5665083,109230.0,109220.0,0.45651547]
[1756664909088,0.5665083,109230.0,109220.0,0.27339883]
[1756664911689,0.57510133,109230.0,109220.0,0.27339883]
[1756664911896,0.5665083,109230.0,109220.0,0.27339883]
[1756664912094,0.57510133,109230.0,109220.0,0.27339883]
[1756664912918,1.0442714,109230.0,109220.0,0.001]
[1756664913359,0.81659765,109230.0,109220.0,0.15743]
[1756664913944,0.19422758,109230.0,109220.0,0.15743]
[1756664914161,0.72830133,109230.0,109220.0,0.15743]
[1756664915691,0.72830245,109230.0,109220.0,0.15743]
[1756664916851,0.57510245,109230.0,109220.0,0.15951]
[1756664919957,0.39200257,109230.0,109220.0,0.36356546]
[1756664920147,0.38340842,109230.0,109220.0,0.36356546]
[1756664922703,0.5665083,109230.0,109220.0,0.36356546]
[1756664929579,0.18509988,109230.0,109220.0,0.36356546]
[1756664929728,0.56597363,109230.0,109220.0,0.36356546]
[1756664933556,0.18309988,109230.0,109220.0,0.36356546]
[1756664933752,0.56397363,109230.0,109220.0,0.36356546]
[1756664938923,0.18309988,109230.0,109220.0,0.36356546]
[1756664939125,0.56397363,109230.0,109220.0,0.36356546]
[1756664949013,0.94484738,109230.0,109220.0,0.36356546]
[1756664949352,0.95344391,109230.0,109220.0,0.36356546]
[1756664954276,0.95344401,109230.0,109220.0,0.36356546]
[1756664957062,0.95344412,109230.0,109220.0,0.36356546]
[1756664958590,0.37375163,109240.0,109220.0,0.42110211]
[1756664958797,0.94484738,109230.0,109220.0,0.41787211]
[1756664959030,0.94484738,109230.0,109220.0,0.42087211]
[1756664960219,0.94484738,109230.0,109220.0,0.36333546]
[1756664960373,0.94484738,109230.0,109220.0,0.21013546]
[1756664960577,0.94484738,109230.0,109220.0,0.36329546]
[1756664961493,0.94584738,109230.0,109220.0,0.36329546]
[1756664964168,0.94584738,109230.0,109220.0,0.21013546]
[1756664964371,0.94584738,109230.0,109220.0,0.36329546]
[1756664966395,0.94584738,109230.0,109220.0,0.17809882]
[1756664966619,1.48847754,109230.0,109220.0,0.001]
[1756664966831,1.84567152,109230.0,109220.0,0.001]
[1756664967056,1.87320152,109230.0,109220.0,0.001]
[1756664970040,1.96618153,109230.0,109220.0,0.151]
[1756664970450,1.97262122,109230.0,109220.0,0.151]
[1756664970808,2.06091754,109230.0,109220.0,0.151]
[1756664971024,2.08069818,109230.0,109220.0,0.151]
[1756664971432,2.06091754,109230.0,109220.0,0.151]
[1756664972445,2.05447785,109230.0,109220.0,0.151]
[1756664975789,2.03728387,109230.0,109220.0,0.151]
[1756664975948,2.05441729,109230.0,109220.0,0.151]
[1756664977842,2.05441729,109230.0,109220.0,0.001]
[1756664978015,2.08163532,109230.0,109220.0,0.001]
[1756664980657,2.30934907,109230.0,109220.0,0.001]
[1756664980883,2.30934907,109230.0,109220.0,0.00021878]
[1756664980884,2.51401873,109230.0,109220.0,0.00021878]
[1756664981556,0.18311664,109220.0,109210.0,0.00114224]
[1756664981778,2.0667778,109220.0,109210.0,0.00114224]
[1756664982225,2.0943128,109220.0,109210.0,0.00114224]
[1756664983872,1.9411528,109220.0,109210.0,0.00114224]
[1756664984016,1.47197587,109220.0,109210.0,0.15637224]
[1756664984235,1.62513587,109220.0,109210.0,0.15637224]
[1756664984923,1.62613587,109220.0,109210.0,0.15637224]
[1756664985126,1.47297587,109220.0,109210.0,0.15637224]
[1756664985414,1.62613587,109220.0,109210.0,0.15637224]
[1756664985943,1.64901995,109220.0,109210.0,0.15637224]
[1756664986599,1.64800341,109220.0,109210.0,0.15637224]
[1756664986791,1.64900341,109220.0,109210.0,0.15637224]
[1756664987282,1.64900341,109220.0,109210.0,0.00637224]
[1756664987463,1.64900365,109220.0,109210.0,0.00637224]
[1756664988453,1.64900365,109220.0,109210.0,0.15637224]
[1756664989686,1.64900365,109220.0,109210.0,0.00637224]
[1756664989880,1.64900365,109220.0,109210.0,0.15637224]
[1756664990308,1.64900853,109220.0,109210.0,0.15637224]
[1756664991710,1.64900853,109220.0,109210.0,0.00637224]
[1756664993804,1.64901831,109220.0,109210.0,0.00637224]
[1756664994019,1.49585831,109220.0,109210.0,0.00637224]
[1756664994223,1.64901831,109220.0,109210.0,0.00637224]
[1756664995173,1.64901831,109220.0,109210.0,0.00114224]
[1756664996146,1.65545779,109220.0,109210.0,0.00114224]
[1756664997416,1.62329698,109220.0,109210.0,0.00114224]
[1756664997624,1.65549802,109220.0,109210.0,0.00114224]
[1756664999384,1.67528732,109220.0,109210.0,0.00114224]
[1756664999624,1.52212732,109220.0,109210.0,0.00620224]
[1756664999828,1.67524732,109220.0,109210.0,0.00620224]
[1756665000444,1.67524732,109220.0,109210.0,0.00420224]
[1756665000652,1.52212732,109220.0,109210.0,0.00420224]
[1756665000859,1.67525454,109220.0,109210.0,0.00420224]
[1756665001607,1.52213454,109220.0,109210.0,0.00420224]
[1756665001817,1.67525454,109220.0,109210.0,0.00620224]
[1756665002017,1.52213454,109220.0,109210.0,0.00620224]
[1756665002198,1.65546524,109220.0,109210.0,0.00620224]
[1756665002746,1.65546524,109220.0,109210.0,0.00420224]
[1756665003285,1.67525362,109220.0,109210.0,0.00114224]
[1756665003496,2.88831487,109220.0,109210.0,0.15114224]
[1756665003810,3.6991329,109220.0,109210.0,0.00114224]
[1756665004627,3.5460129,109220.0,109210.0,0.00114224]
[1756665004830,3.6991329,109220.0,109210.0,0.15114224]
[1756665005863,3.5460129,109220.0,109210.0,0.15114224]
[1756665006062,3.6991329,109220.0,109210.0,0.15114224]
[1756665006868,3.69054835,109220.0,109210.0,0.15114224]
[1756665007059,3.69913879,109220.0,109210.0,0.00114224]
[1756665007485,2.55651754,109220.0,109210.0,0.00114224]
[1756665008050,2.11291754,109220.0,109210.0,0.00114224]
[1756665010425,2.13765532,109220.0,109210.0,0.00114224]
[1756665010632,2.13765632,109220.0,109210.0,0.00114224]
[1756665012173,2.13765632,109220.0,109210.0,0.15420224]
[1756665012379,1.98453632,109220.0,109210.0,0.15420224]
[1756665012605,2.13765632,109220.0,109210.0,0.00420224]
[1756665013028,2.17802845,109220.0,109210.0,0.00420224]
[1756665013205,2.17802845,109220.0,109210.0,0.15420224]
[1756665013419,2.17802845,109220.0,109210.0,0.00420224]
[1756665014926,2.15329067,109220.0,109210.0,0.00420224]
[1756665015581,2.17802845,109220.0,109210.0,0.00420224]
[1756665015925,0.94493296,109220.0,109210.0,0.15620224]
[1756665016139,2.08755421,109220.0,109210.0,0.00620224]
[1756665017031,2.06281643,109220.0,109210.0,0.00620224]
[1756665017644,2.04563555,109220.0,109210.0,0.00620224]
[1756665017942,2.06281112,109220.0,109210.0,0.00620224]
[1756665018149,2.15110744,109220.0,109210.0,0.00620224]
[1756665018402,2.17584532,109220.0,109210.0,0.00620224]
[1756665019531,2.15110754,109220.0,109210.0,0.00620224]
[1756665021515,2.15111028,109220.0,109210.0,0.00620224]
[1756665026928,2.15111028,109220.0,109210.0,0.00420224]
[1756665028489,2.13393617,109220.0,109210.0,0.00420224]
[1756665028686,2.15112312,109220.0,109210.0,0.00420224]
[1756665029300,2.15112486,109220.0,109210.0,0.00420224]
[1756665029699,2.15112486,109220.0,109210.0,0.00619224]
[1756665031338,2.17586264,109220.0,109210.0,0.00420224]
[1756665031554,2.17586264,109220.0,109210.0,0.00114224]
[1756665033017,2.20308067,109220.0,109210.0,0.00114224]
[1756665035300,2.20308067,109220.0,109210.0,0.00434224]
[1756665039341,2.17730173,109220.0,109210.0,0.00434224]
[1756665039551,2.04997504,109220.0,109210.0,0.00434224]
[1756665039727,2.20309504,109220.0,109210.0,0.00434224]
[1756665043019,2.20309504,109220.0,109210.0,0.00633224]
[1756665044080,2.20309504,109220.0,109210.0,0.00434224]
[1756665044258,2.20309504,109220.0,109210.0,0.00633224]
[1756665044604,2.20309504,109220.0,109210.0,0.00434224]
[1756665044812,1.98005337,109220.0,109210.0,0.00633224]
[1756665045734,2.16317001,109220.0,109210.0,0.00633224]
[1756665047551,2.01005001,109220.0,109210.0,0.00633224]
[1756665047750,2.16313001,109220.0,109210.0,0.00633224]
[1756665050009,2.16312951,109220.0,109210.0,0.00633224]
[1756665050346,2.16312932,109220.0,109210.0,0.00633224]
[1756665052040,2.01004932,109220.0,109210.0,0.00633224]
[1756665052265,2.074833,109220.0,109210.0,0.00633224]
[1756665052469,2.07483303,109220.0,109210.0,0.00633224]
[1756665053223,2.07483303,109220.0,109210.0,0.15633224]
[1756665053429,2.07483303,109220.0,109210.0,0.00633224]
[1756665053649,2.16312935,109220.0,109210.0,0.00633224]
[1756665054263,2.16312935,109220.0,109210.0,0.15633224]
[1756665054906,1.92175303,109220.0,109210.0,0.15633224]
[1756665055114,1.43586849,109220.0,109210.0,0.00633224]
[1756665055627,1.58894849,109220.0,109210.0,0.00633224]
[1756665060473,1.96982224,109220.0,109210.0,0.00633224]
[1756665060719,1.95262707,109220.0,109210.0,0.00633224]
[1756665060941,2.05809693,109220.0,109210.0,0.00633224]
[1756665061389,2.05809686,109220.0,109210.0,0.00633224]
[1756665062663,2.05809686,109220.0,109210.0,0.00114224]
[1756665062912,0.91547561,109220.0,109210.0,0.00114224]
[1756665063133,2.05809686,109220.0,109210.0,0.00428224]
[1756665063349,2.05809608,109220.0,109210.0,0.00428224]
[1756665063569,2.05809608,109220.0,109210.0,0.00625224]
[1756665064507,1.58892601,109220.0,109210.0,0.00625224]
[1756665064952,1.96979976,109220.0,109210.0,0.00428224]
[1756665065171,1.96979976,109220.0,109210.0,0.00625224]
[1756665066236,1.58892601,109220.0,109210.0,0.00625224]
[1756665066452,1.95001138,109220.0,109210.0,0.00625224]
[1756665066672,2.0383077,109220.0,109210.0,0.00625224]
[1756665066895,2.03830328,109220.0,109210.0,0.00625224]
[1756665067345,2.03186019,109220.0,109210.0,0.00625224]
[1756665067803,1.94356387,109220.0,109210.0,0.00625224]
[1756665068287,1.56269012,109220.0,109210.0,0.00625224]
[1756665070424,1.56268597,109220.0,109210.0,0.00625224]
[1756665070862,1.56268573,109220.0,109210.0,0.00625224]
[1756665072766,1.40960573,109220.0,109210.0,0.00625224]
[1756665072979,1.65098205,109220.0,109210.0,0.00625224]
[1756665074089,1.49790205,109220.0,109210.0,0.00625224]
[1756665074243,1.56268573,109220.0,109210.0,0.00625224]
[1756665075298,1.56268573,109220.0,109210.0,0.00488053]
[1756665077588,1.56268831,109220.0,109210.0,0.00488053]
[1756665078133,1.56913123,109220.0,109210.0,0.00488053]
[1756665078543,1.65742755,109220.0,109210.0,0.00488053]
[1756665079754,1.56913123,109220.0,109210.0,0.00488053]
[1756665080095,1.56268831,109220.0,109210.0,0.00488053]
[1756665081107,1.55410263,109220.0,109210.0,0.00488053]
[1756665081314,1.56269529,109220.0,109210.0,0.00488053]
[1756665081724,0.73050779,109220.0,109210.0,0.00488053]
[1756665081945,1.49225529,109220.0,109210.0,0.00488053]
[1756665082119,1.4922569,109220.0,109210.0,0.00488053]
[1756665083123,1.3391769,109220.0,109210.0,0.00488053]
[1756665083344,1.54929319,109220.0,109210.0,0.00488053]
[1756665088552,1.39625319,109220.0,109210.0,0.00488053]
[1756665088769,1.4922169,109220.0,109210.0,0.00488053]
[1756665090473,1.3391769,109220.0,109210.0,0.15488053]
[1756665090668,1.3391769,109220.0,109210.0,0.00488053]
[1756665090895,1.4922169,109220.0,109210.0,0.00488053]